Cogmind - Beta 11 X5 @@@ ROGUE MODE // 2021.07.03 @ 23:19:36 Player: Exp. Geonium Core Result: Destroyed by 8R-AWN with 8R-AWN's Boregun Performance ------------- Evolutions (0) 0 Regions Visited (3) 600 Robots Destroyed (0) 0 Value Destroyed (0) 0 Prototype IDs (36) 720 Alien Tech Used (0) 0 Bonus (255) 255 TOTAL SCORE: 1575 Bonus ------- Aligned with FarCom 300 Friendly Fire -45 Cogmind --------- Core Integrity 0/250 Matter 167/300 Energy 35/100 System Corruption 0% Temperature Cool (0) Movement Treading (160) Location -10/Exiles Parts ------- > --- POWER (1) -------- (None) > --- PROPULSION (2) --- Light Treads Light Treads > --- UTILITY (2) ------ (None) > --- WEAPON (2) ------- Latent Energy Streamer Longsword +1 > --- INVENTORY (5) ---- Aluminum Leg Maul Maul Maul Peak State ------------ > --- POWER ------------ (None) > --- PROPULSION ------- Aluminum Leg Aluminum Leg > --- UTILITY ---------- Supersonic Drone Bay > --- WEAPON ----------- Latent Energy Streamer Longsword +1 > --- INVENTORY -------- Light Treads Light Treads Maul Maul Maul [Rating: 28] Favorites ----------- Power Light Ion Engine Engine Light Ion Engine Propulsion Aluminum Leg Treads Light Treads Leg Aluminum Leg Utility Supersonic Drone Bay Device Supersonic Drone Bay Storage Small Storage Unit Weapon Maul Energy Gun Medium Laser Energy Cannon Latent Energy Streamer Ballistic Gun Assault Rifle Impact Weapon Maul Slashing Weapon Longsword +1 Special Melee Weapon Datajack Build | -11 -10 -10 -10 ------- Run | Scr Mat Min Exi Slots Evolved . | . . . . Power . | . . . . Propulsion . | . . . . Utility . | . . . . Weapon . | . . . . Parts Attached 17 | . 1 . 16 Power . | . . . . Engine . | . . . . Core . | . . . . Reactor . | . . . . Propulsion 2 | . . . 2 Treads 2 | . . . 2 Leg . | . . . . Wheel . | . . . . Hover . | . . . . Flight . | . . . . Utility 1 | . . . 1 Device 1 | . . . 1 Storage . | . . . . Processor . | . . . . Hackware . | . . . . Protection . | . . . . Artifact . | . . . . Weapon 14 | . 1 . 13 Energy Gun 1 | . . . 1 Energy Cannon 3 | . . . 3 Ballistic Gun 3 | . 1 . 2 Ballistic Cannon . | . . . . Launcher . | . . . . Special Weapon . | . . . . Impact Weapon 5 | . . . 5 Slashing Weapon 1 | . . . 1 Piercing Weapon . | . . . . Special Melee Weapon 1 | . . . 1 Unidentified Prototypes . | . . . . Parts Lost 3 | . . . 3 Power 1 | . . . 1 Propulsion 1 | . . . 1 Utility 1 | . . . 1 Weapon . | . . . . Highest Loss Streak 3 | . . . 3 Average Slot Usage (%) 88 | . 85 85 88 Engine 13 | . 14 14 13 Leg 27 | . 28 28 27 Device 9 | . . . 12 Storage 7 | . 14 14 6 Energy Gun 5 | . 15 14 3 Energy Cannon 1 | . . . 1 Ballistic Gun 8 | . 12 14 7 Impact Weapon 8 | . . . 10 Special Melee Weapon 3 | . . . 4 Naked Turns . | . . . . Heaviest Build 17 | 11 12 12 17 Greatest Support 20 | 20 20 20 20 Greatest Overweight (x) . | . . . . Average Overweight (x) . | . . . . Largest Inventory Capacity 8 | . 8 8 8 Average Capacity 6 | . 8 8 6 Most Carried 8 | . 8 8 8 Average Carried 5 | . 7 8 5 Final Capacity 8 | 8 8 8 5 Final Carried 8 | 6 8 8 4 Class Distribution -------------------- 100% | Mutant Dominant Class ---------------- Mutant | -10/Materials Mutant | -10/Mines Mutant | -10/Exiles Resources | -11 -10 -10 -10 ----------- Run | Scr Mat Min Exi Matter Collected 248 | 189 11 . 48 Remotely . | . . . . Salvage Created 54 | . . . 54 Parts . | . . . . Haulers Intercepted . | . . . . Recyclers Shooed . | . . . . Parts Field Recycled . | . . . . Retrieved Matter . | . . . . Parts Self-Destructed . | . . . . Prevented . | . . . . Kills | -11 -10 -10 -10 ------- Run | Scr Mat Min Exi Combat Hostiles Destroyed 4 | . . . 4 Guns 4 | . . . 4 Classes Destroyed 1 | . . . 1 Assembled 4 | . . . 4 Best Kill Streak 4 | . . . 4 Combat Bots Only 4 | . . . 4 Max Kills in Single Turn 1 | . . . 1 Gunslinging . | . . . . Exploded . | . . . . Melee . | . . . . Uniques/NPCs Destroyed . | . . . . Combat | -11 -10 -10 -10 -------- Run | Scr Mat Min Exi Damage Taken 867 | . 20 . 847 Core 255 | . . . 255 Absorbed by Shields . | . . . . Core Remaining (%) 100 | 100 . . . Volleys Fired 10 | . . . 10 Largest 2 | . . . 2 Hottest 70 | . . . 70 Shots Fired 20 | . . . 20 Gun 20 | . . . 20 Cannon . | . . . . Launcher . | . . . . Special . | . . . . Kinetic 10 | . . . 10 Thermal 10 | . . . 10 Explosive . | . . . . Electromagnetic . | . . . . Robot Hit Streak 2 | . . . 2 Robot Miss Streak 2 | . . . 2 Penetration Max . | . . . . Secondary Targets 1 | . . . 1 Max Gunslinging Chain 1 | . . . 1 Shots Hit Robots 40 | . . . 40 Core Hits 10 | . . . 10 Critical Kills . | . . . . Critical Parts Destroyed . | . . . . Critical Strikes 2 | . . . 2 Burn 1 | . . . 1 Sever 1 | . . . 1 Melee Attacks 32 | . . . 32 Impact . | . . . . Slashing 27 | . . . 27 Piercing . | . . . . Sneak Attacks 5 | . . . 5 Combat Hostiles . | . . . . Follow-up Attacks . | . . . . Damage Inflicted 1334 | . . 6 1328 Guns 120 | . . . 120 Cannons . | . . . . Explosions . | . . . . Melee 1208 | . . . 1208 Ramming 6 | . . 6 . Kinetic 69 | . . . 69 Thermal 51 | . . . 51 Explosive . | . . . . Electromagnetic . | . . . . Impact . | . . . . Slashing 1208 | . . . 1208 Piercing . | . . . . Highest Corruption . | . . . . Average Corruption . | . . . . Corruption Purged . | . . . . Overload Shots . | . . . . Overflow Damage . | . . . . Projectiles . | . . . . Explosions . | . . . . Melee . | . . . . Knockbacks . | . . . . Impact . | . . . . Kinetic . | . . . . Secondary . | . . . . Self-Inflicted Damage . | . . . . Shots . | . . . . Rammed . | . . . . Targets Rammed 1 | . . 1 . Kicked 1 | . . 1 . Crushed . | . . . . Highest Temperature 65 | . . . 65 Average Temperature 24 | . . . 24 Received Heat Transfer 92 | . 12 . 80 Siege Activations . | . . . . Robots Corrupted . | . . . . Combat Hostiles . | . . . . Parts Fried . | . . . . Impact Corruptions . | . . . . Robots Melted . | . . . . Combat Hostiles . | . . . . Parts Melted . | . . . . Heat Transferred 222 | . . . 222 Parts Sabotaged . | . . . . Parts Stolen . | . . . . Parts Stripped . | . . . . Power Chain Reactions . | . . . . Missiles Intercepted . | . . . . Alert | -11 -10 -10 -10 ------- Run | Scr Mat Min Exi Peak Influence 39 | . 39 15 . Initial 15 | . . 15 . Average 16 | . 18 15 . Maximum Alert Level . | . . . . Low Security (%) 100 | . 100 100 . Level 1 . | . . . . Level 2 . | . . . . Level 3 . | . . . . Level 4 . | . . . . Level 5 . | . . . . High Security . | . . . . Max Security . | . . . . Squads Dispatched . | . . . . Investigation . | . . . . Extermination . | . . . . Reinforcement . | . . . . Assault . | . . . . Garrison . | . . . . Intercept . | . . . . Construction Impeded . | . . . . Haulers Reinforced . | . . . . Cargo Convoy Interrupts . | . . . . Stealth | -11 -10 -10 -10 --------- Run | Scr Mat Min Exi Distress Signals . | . . . . Communications Jammed . | . . . . Distress Signals . | . . . . Times Spotted 15 | . 3 . 12 Peak Tracking Total 11 | . 3 . 11 Tactical Retreats 1 | . . . 1 Traps | -11 -10 -10 -10 ------- Run | Scr Mat Min Exi Traps Triggered . | . . . . Indirectly . | . . . . Trap Hack Attempts . | . . . . Triggered . | . . . . Disarmed . | . . . . Reprogrammed . | . . . . Reused . | . . . . Traps Extracted . | . . . . Installed . | . . . . Triggered . | . . . . Exploded 3 | . . . 3 Machines | -11 -10 -10 -10 ---------- Run | Scr Mat Min Exi Machines Disabled 3 | . . . 3 Max in Single Turn 1 | . . . 1 Machines Sabotaged . | . . . . Garrisons Compromised . | . . . . Overloaded Fab Kills . | . . . . Fab Network Shutdowns . | . . . . Hacking | -11 -10 -10 -10 --------- Run | Scr Mat Min Exi Machines Accessed 3 | . 2 . 1 Terminals 2 | . 2 . . Fabricators . | . . . . Repair Stations . | . . . . Recycling Units . | . . . . Scanalyzers . | . . . . Garrison Access . | . . . . Total Hacks 8 | . 7 . 1 Successful 4 | . 3 . 1 Failed 4 | . 4 . . Catastrophic 3 | . 3 . . Database Lockouts . | . . . . Manual 6 | . 5 . 1 Terminals 7 | . 7 . . Fabricators . | . . . . Repair Stations . | . . . . Recycling Units . | . . . . Scanalyzers . | . . . . Garrison Access . | . . . . Terminal Hacks 4 | . 3 . 1 Branch Access Points 1 | . 1 . . Registered Components 1 | . 1 . . Registered Prototypes 1 | . 1 . . EX-Prototype ID Bank 1 | . . . 1 Fabricator Hacks . | . . . . Repair Station Hacks . | . . . . Recycling Unit Hacks . | . . . . Scanalyzer . | . . . . Garrison Access Hacks . | . . . . Unauthorized Hacks . | . . . . Terminals . | . . . . Fabricators . | . . . . Repair Stations . | . . . . Recycling Units . | . . . . Scanalyzers . | . . . . Garrison Access . | . . . . Data Cores Recovered . | . . . . Used . | . . . . Hacking Detections 2 | . 2 . . Full Trace Events . | . . . . Feedback Events . | . . . . Feedback Blocked . | . . . . Robot Schematics Acquired . | . . . . Robots Built . | . . . . Matter . | . . . . Time . | . . . . Total Robot Build Rating . | . . . . Part Schematics Acquired . | . . . . Parts Built . | . . . . Matter . | . . . . Time . | . . . . Total Part Build Rating . | . . . . Parts Repaired . | . . . . Time . | . . . . Parts Recycled . | . . . . Recycled Matter . | . . . . Retrieved Matter . | . . . . Retrieved Components . | . . . . Parts Scanalyzed . | . . . . Part Schematics Acquired . | . . . . Parts Damaged . | . . . . Bothacking | -11 -10 -10 -10 ------------ Run | Scr Mat Min Exi Used RIF Installer . | . . . . Robots Hacked 5 | . . . 5 Non-combat 3 | . . . 3 Combat 2 | . . . 2 Robot Hacks Applied 5 | . . . 5 parse_system 5 | . . . 5 Relay Couplers Released . | . . . . Robots Rewired . | . . . . Allies Hacked . | . . . . Hacks Repelled . | . . . . Allies | -11 -10 -10 -10 -------- Run | Scr Mat Min Exi Total Allies . | . . . . Largest Group . | . . . . Highest-Rated Group . | . . . . Highest-Rated Ally . | . . . . Total Orders . | . . . . Ally Attacks . | . . . . Total Damage . | . . . . Kills . | . . . . Allies Corrupted . | . . . . Allies Melted . | . . . . Intel | -11 -10 -10 -10 ------- Run | Scr Mat Min Exi Robot Analysis Total . | . . . . Derelict Logs Recovered . | . . . . Drone Launches 1 | . . . 1 Drone Recoveries 1 | . . . 1 Exploration | -11 -10 -10 -10 ------------- Run | Scr Mat Min Exi Turns Passed 1627 | . 169 133 1325 Spaces Moved 1180 | 1 103 98 978 Core . | . . . . Treads . | . . . . Legs 1180 | 1 103 98 978 Wheels . | . . . . Hover . | . . . . Flight . | . . . . Fastest Speed 120 | 120 120 120 120 Average Speed 120 | 120 120 120 120 Slowest Speed 120 | 120 120 120 120 Overloaded Moves . | . . . . Propulsion Burnouts . | . . . . Robots Hopped . | . . . . Cave-ins Triggered . | . . . . Exploration Rate (%) 34 | 2 27 20 89 Regions Visited 3 Branch Regions 2 Pre-discovered Areas . | . . . . Known Exits Taken 1 | . 1 . . Unknown Exits Taken 2 | 1 . 1 . Scrap Searched . | . . . . Spaces Dug . | . . . . Terrain Destroyed . | . . . . Melee . | . . . . Projectile . | . . . . AOE . | . . . . Terrain Rammed . | . . . . Walls Destroyed . | . . . . Machines Disabled . | . . . . Actions | -11 -10 -10 -10 --------- Run | Scr Mat Min Exi Total 1345 | . 149 113 1083 Wait 62 | . 38 15 9 Move 1177 | . 102 97 978 Hop . | . . . . Pick Up 22 | . 5 . 17 Fast Attach 3 | . . . 3 Attach 6 | . . . 6 Detach 1 | . . . 1 Swap 8 | . 1 . 7 Drop 23 | . 3 . 20 Fire 10 | . . . 10 Melee 32 | . . . 32 Ram . | . . . . Kick 1 | . . 1 . Crush . | . . . . Escape Stasis . | . . . . Rewire . | . . . . Trap . | . . . . Miscellaneous . | . . . . Route ------- -11/Scrapyard -10/Materials -10/Mines -10/Exiles History --------- Turn | Location | Event 1 | -11/Scrapyard | Discovered new exit (range 0) 1 | -11/Scrapyard | Entered Materials 71 | -10/Materials | Identified exit to Mines 170 | -10/Materials | Entered Mines 278 | -10/Mines | Assembled infested the area 298 | -10/Mines | Discovered new exit (range 5) 303 | -10/Mines | Entered Exiles 317 | -10/Exiles | Build established: Mutant 333 | -10/Exiles | Met 8R-AWN 353 | -10/Exiles | Met EX-HEX 386 | -10/Exiles | Met EX-BIN 412 | -10/Exiles | Aligned with FarCom system 414 | -10/Exiles | Given EX-Vault access code 447 | -10/Exiles | Opened EX-Vault 458 | -10/Exiles | Found Supersonic Drone Bay 519 | -10/Exiles | Warned to stay clear of 0b10 Research branches 646 | -10/Exiles | Met EX-DEC 707 | -10/Exiles | Visited The Gauntlet 1237 | -10/Exiles | Found Latent Energy Streamer 1240 | -10/Exiles | Found Longsword +1 1458 | -10/Exiles | Attacked by the Exiles 1553 | -10/Exiles | Core integrity fell below 50% 1595 | -10/Exiles | Core integrity fell below 20% 1628 | -10/Exiles | Destroyed by 8R-AWN with 8R-AWN's Boregun Last Messages --------------- 01579_ HV Slug penetrates Earth. 01582_ Penetrated by HV Slug. 01582_ HV Slug penetrates Earth. 01582_ HV Slug penetrates Machine. 01582_ HV Slug penetrates Wall. 01583_ Destroyed 8R-AWN's Armor/TH. 01584_ HV Slug penetrates Wall. 01584_ Penetrated by HV Slug. 01584_ HV Slug penetrates Earth. 01585_ 8R-AWN 8R-AWN's Boregun severed. 01586_ HV Slug penetrates Wall. 01588_ Penetrated by HV Slug. 01588_ HV Slug penetrates Earth. 01589_ Penetrated by HV Slug. 01602_ Critical hit (Destroy). 01602_ Supersonic Drone Bay destroyed. 01605_ Penetrated by HV Slug. 01616_ HV Slug penetrates Wall. 01621_ Destroyed 8R-AWN's Armor/EX. 01621_ Penetrated by HV Slug. Map ----- +----------------------------------------------------+ | ?????????????????????????????????????????????????? | | ?????????????????????????????????????????????????? | | ?????????????????????????????????????????????????? | | ?????????????????????????????????????????????????? | | ?????????????????????????????????????????????????? | | ?????????????????????????????????????????????????? | | ?????????????????????????????????????????????????? | | ?????????????????????????????????????????????????? | | ?????????????????????????????????????????????????? | | ?????????????????????????????????????????????????? | | ?????????????????????????????????????????????????? | | ?????????????????????????????????????????????????? | | ?????????????????????????????????????????????????? | | ?????????????????????????????????????????????????? | | ?????????????????????????????????????????????????? | | ????????????? ??????????????????????????????????? | | ????????????? ?????????????????????????????????? | | ????????????# ????????????????????????????????? | | ????????????# ???????????????????????????????? | | ?????????????# ?????????????#######??????????? | | ?????????????# ######???????#!!! "#??????????? | | ?????????????# # ##?????# "#??????????? | | ??????????????# #?????# "#??????????? | | ??????????????##" ##???## " #??????????? | | ??????????????# g#####" "#??????????? | | ??????????????#### @[ ##" ""#??????????? | | ?????????????????## ! # " #????????????? | | ??????????????????# ## /[ #????????????? | | ??????????????????#??#;#; ##???????????? | | ????????????????????# # ### "####????????? | | ??????????????????##;#####" ;""#????????? | | ??????????????????# !!""""" "#????????? | | ?????????????????#;! "###"" % ######???# | | ????????????????# #! "#?## ""##### | | ???????????????? ##! [##??#" | | ??????????????? ??# !""""""###???#"# | | ?????????????? ???#########??????#### | | ????????????????????????????????????##" % | | ??????????????????????????????????????### % | | ????????????????????????????????????????## | | ?????????????????????????????????????????#" | | ??????????????????????????????????????????##" | | ???????????????????????????????????????????#""" | | ??????????????????????????????????????????##" | | ??????????????????????????????????????????#"" | | ?????????????????????????????????????????##""" | | ?????????????????????????????????????????#""" | | ?????????????????????????????????????????#""" | | ?????????????????????????????????????????#"" | | ?????????????????????????????????????????#""" | +----------------------------------------------------+ Best States ------------- Heat Dissipation 25 Energy Generation 10 Energy Capacity 125 Matter Stores 300 Matter Capacity 300 Sight Range 16 Terrain Scan Density 10 Evasion (%) 55 Recoil Reduction 1 Item Schematics ----------------- None Robot Schematics ------------------ None Fabricated ------------ Nothing Alien Tech Used ----------------- None Achievements -------------- None Challenges ------------ None Game ------ Seed MassColdCharger Manual? 0 Play Time 00:13:47 Cumulative 135.6 hours Start 2021.07.03 @ 23:06:07 End 2021.07.03 @ 23:19:36 Sessions 1 Manual Loads 0 Difficulty Rogue Special Mode None Game No. 205 Rogue 205 Adventurer 0 Explorer 0 Win Type - Total 6 Types 5/0/0/1/0/0/0/0/0 Lore% 51 Gallery% 74 Achievement% 59 Wizard Run 0 Options --------- ASCII 0 Keyboard 0 Movement Mouse Keybinds 0 Fullscreen 1 Font 18/Terminus Map View 76x50 Tactical HUD 1 Map Filters NONE Filters NONE Steam 1 RUN: 82e7f1f9-a74b-40be-bdf4-4a1638e2b10b